fUST/lending_fUST_20250726
["ID","MTS","AMOUNT","RATE_DAILY","PERIOD"]
[374959551,1753482638830,-775.58,0.00021239,2]
[374959553,1753482638840,-460.0,0.00021239,2]
[374959555,1753482638849,-460.0,0.00021239,2]
[374959557,1753482638859,-460.0,0.00021239,2]
[374959559,1753482638868,-460.0,0.00021239,2]
[374959561,1753482638877,-212.238664,0.0002124,2]
[374959563,1753482638888,-212.238664,0.0002124,2]
[374959565,1753482638898,-151.0,0.00021295,2]
[374959567,1753482638908,-151.0,0.00021295,2]
[374959569,1753482638918,-460.0,0.00021369,2]
[374959571,1753482638928,-807.03,0.00021369,2]
[374959573,1753482638937,-460.0,0.00021369,2]
[374959575,1753482638947,-460.0,0.00021369,2]
[374959577,1753482638957,-460.0,0.00021513,2]
[374959579,1753482638966,-460.0,0.00021513,2]
[374959581,1753482638975,-571.59,0.00021513,2]
[374959583,1753482638987,-460.0,0.00021513,2]
[374959585,1753482638996,-775.58,0.00021513,2]
[374959587,1753482639005,-460.0,0.00021513,2]
[374959589,1753482639015,-293.47726295,0.00021513,2]
[374959591,1753482639024,-460.0,0.00021513,2]
[374959593,1753482639034,-460.0,0.00021513,2]
[374959595,1753482639044,-151.0,0.00021569,2]
[374959597,1753482639053,-460.0,0.00021643,2]
[374959599,1753482639064,-807.03,0.00021643,2]
[374959601,1753482639074,-460.0,0.00021643,2]
[374959603,1753482639083,-460.0,0.00021643,2]
[374959605,1753482639093,-151.0,0.00021646,2]
[374959607,1753482639103,-215.0738,0.00021646,2]
[374959609,1753482639112,-500.0,0.000217,2]
[374959611,1753482639121,-500.0,0.000217,2]
[374959613,1753482639130,-151.0,0.00021787,2]
[374959615,1753482639140,-460.0,0.00021787,2]
[374959617,1753482639151,-460.0,0.00021787,2]
[374959619,1753482639161,-571.59,0.00021787,2]
[374959621,1753482639171,-460.0,0.00021787,2]
[374959623,1753482639180,-775.58,0.00021787,2]
[374959625,1753482639189,-351.91,0.00021787,2]
[374959627,1753482639199,-460.0,0.00021787,2]
[374959629,1753482639208,-460.0,0.00021787,2]
[374959631,1753482639217,-412.79,0.00021837,2]
[374959633,1753482639227,-151.0,0.00021837,2]
[374959635,1753482639236,-151.0,0.00021843,2]
[374959637,1753482639246,-460.0,0.00021917,2]
[374959639,1753482639255,-888.0,0.00021917,2]
[374959641,1753482639266,-807.03,0.00021917,2]
[374959643,1753482639275,-460.0,0.00021917,2]
[374959645,1753482639285,-460.0,0.00021917,2]
[374959647,1753482639294,-1023.38025603,0.0002198,2]
[374959649,1753482639303,-200.0,0.00021999,2]
[374959651,1753482639313,-440.69,0.00022,7]
[374959653,1753482639322,-1364.39,0.00022,7]
[374959655,1753482639332,-5586.74,0.00022,7]
[374959657,1753482639342,-212.238664,0.00022,7]
[374959659,1753482639352,-212.238664,0.00022,7]
[374959661,1753482639361,-153.0,0.00022,2]
[374959663,1753482639371,-325.48728884,0.00022061,2]
[374959665,1753482639380,-383.37097487,0.00022061,2]
[374959667,1753482639390,-571.59,0.00022061,2]
[374959669,1753482639399,-460.0,0.00022061,2]
[374959671,1753482639409,-775.58,0.00022061,2]
[374959673,1753482639418,-460.0,0.00022061,2]
[374959675,1753482639427,-460.0,0.00022061,2]
[374959677,1753482639437,-460.0,0.00022191,2]
[374959679,1753482639447,-807.03,0.00022191,2]
[374959681,1753482639457,-460.0,0.00022191,2]
[374959683,1753482639467,-460.0,0.00022191,2]
[374959685,1753482639476,-202.0,0.00022228,2]
[374959687,1753482639486,-1264.39103806,0.000223,2]
[374959689,1753482639496,-571.59,0.00022335,2]
[374959691,1753482639506,-460.0,0.00022335,2]
[374959693,1753482639516,-775.58,0.00022335,2]
[374959696,1753482639526,-460.0,0.00022335,2]
[374959698,1753482639535,-460.0,0.00022335,2]
[374959700,1753482639545,-151.0,0.00022336,7]
[374959702,1753482639554,-150.0,0.000224,2]
[374959704,1753482639564,-460.0,0.00022465,2]
[374959705,1753482639573,-807.03,0.00022465,2]
[374959708,1753482639582,-586.36439493,0.00022465,2]
[374959710,1753482639592,-460.0,0.00022465,2]
[374959712,1753482639601,-1371.95,0.00022465,2]
[374959714,1753482639611,-202.0,0.00022496,2]
[374959716,1753482639622,-571.59,0.00022609,2]
[374959718,1753482639631,-460.0,0.00022609,2]
[374959720,1753482639642,-775.58,0.00022609,2]
[374959722,1753482639652,-460.0,0.00022609,2]
[374959724,1753482639661,-460.0,0.00022609,2]
[374959726,1753482639670,-168.0,0.00022617,2]
[374959728,1753482639680,-460.0,0.00022739,2]
[374959730,1753482639689,-807.03,0.00022739,2]
[374959732,1753482639699,-460.0,0.00022739,2]
[374959734,1753482639709,-200.0,0.00022783,2]
[374959736,1753482639718,-5477.23507723,0.00022836,2]
[374959738,1753482639728,-571.59,0.00022883,2]
[374959740,1753482639738,-460.0,0.00022883,2]
[374959742,1753482639749,-775.58,0.00022883,2]
[374959744,1753482639758,-460.0,0.00022883,2]
[374959746,1753482639768,-277.35856383,0.00022883,2]
[374959748,1753482639777,-151.0,0.00022884,7]
[374959750,1753482639787,-250.0,0.00022918,2]
[374959752,1753482639796,-216.862,0.00022918,2]
[374959754,1753482639805,-150.0,0.00022918,2]
[374959756,1753482639815,-260.182,0.00022918,2]
[374959758,1753482639824,-217.773,0.00022918,2]
[374959760,1753482639834,-2000.0,0.0002298,2]
[374959762,1753482639843,-460.0,0.00023013,2]
[374959764,1753482639852,-807.03,0.00023013,2]
[374959766,1753482639862,-460.0,0.00023013,2]
[374959768,1753482639871,-223.0315306,0.00023015,2]
[374959770,1753482639880,-2020.989,0.00023024,2]
[374959772,1753482639889,-407.0,0.00023024,2]
[374959774,1753482639899,-212.238664,0.00023024,7]
[374959776,1753482639909,-212.238664,0.00023024,7]
[374959778,1753482639919,-571.59,0.00023157,2]
[374959780,1753482639929,-460.0,0.00023157,2]
[374959782,1753482639939,-775.58,0.00023157,2]
[374959784,1753482639948,-460.0,0.00023157,2]
[374959786,1753482639957,-793.0,0.00023271,2]
[374959788,1753482639967,-460.0,0.00023287,2]
[374959790,1753482639977,-807.03,0.00023287,2]
[374959792,1753482639986,-460.0,0.00023287,2]
[374959794,1753482639996,-793.0,0.00023359,2]
[374959796,1753482640006,-151.0,0.00023431,7]
[374959798,1753482640015,-571.59,0.00023431,2]
[374959800,1753482640025,-460.0,0.00023431,2]
[374959802,1753482640034,-775.58,0.00023431,2]
[374959804,1753482640044,-460.0,0.00023431,2]
[374959806,1753482640053,-793.0,0.00023481,2]
[374959808,1753482640063,-793.0,0.00023549,2]
[374959810,1753482640072,-460.0,0.00023561,2]
[374959812,1753482640082,-807.03,0.00023561,2]
[374959814,1753482640091,-460.0,0.00023561,2]
[374959816,1753482640100,-1264.39103806,0.00023566,2]
[374959818,1753482640109,-793.0,0.00023593,2]
[374959820,1753482640119,-157.1,0.000236,2]
[374959822,1753482640128,-440.69,0.000236,7]
[374959824,1753482640137,-1364.39,0.000236,7]
[374959826,1753482640146,-5586.74,0.000236,7]
[374959828,1753482640156,-476.88235691,0.000236,7]
[374959830,1753482640165,-312.16666667,0.000236,7]
[374959832,1753482640174,-793.0,0.00023607,2]
[374959834,1753482640184,-793.0,0.00023641,2]
[374959836,1753482640194,-793.0,0.00023675,2]
[374959838,1753482640204,-793.0,0.00023702,2]
[374959840,1753482640214,-212.238664,0.00023702,7]
[374959842,1753482640224,-212.238664,0.00023702,7]
[374959844,1753482640234,-151.0,0.00023705,7]
[374959846,1753482640245,-571.59,0.00023705,2]
[374959848,1753482640255,-460.0,0.00023705,2]
[374959850,1753482640265,-775.58,0.00023705,2]
[374959852,1753482640276,-460.0,0.00023705,2]
[374959854,1753482640286,-801.0,0.00023752,2]
[374959856,1753482640296,-619.18,0.00023758,2]
[374959859,1753482640306,-793.0,0.00023781,2]
[374959861,1753482640315,-460.0,0.00023835,2]
[374959863,1753482640325,-807.03,0.00023835,2]
[374959865,1753482640334,-460.0,0.00023835,2]
[374959867,1753482640344,-153.0,0.0002389,2]
[374959869,1753482640353,-153.0,0.0002389,2]
[374959871,1753482640362,-153.0,0.0002389,2]
[374959873,1753482640371,-153.0,0.0002389,2]
[374959875,1753482640380,-153.0,0.0002389,2]
[374959877,1753482640390,-153.0,0.0002389,2]
[374959879,1753482640400,-153.0,0.0002389,2]
[374959881,1753482640409,-150.0,0.000239,2]
[374959883,1753482640418,-168.0,0.00023974,2]
[374959885,1753482640427,-571.59,0.00023979,2]
[374959887,1753482640437,-460.0,0.00023979,2]
[374959889,1753482640447,-775.58,0.00023979,2]
[374959891,1753482640456,-460.0,0.00023979,2]
[374959893,1753482640466,-395.46928886,0.00024,7]
[374959895,1753482640475,-526.33361954,0.00024,7]
[374959897,1753482640485,-793.0,0.00024013,2]
[374959899,1753482640495,-168.0,0.00024034,2]
[374959901,1753482640506,-151.0,0.00024044,7]
[374959903,1753482640515,-793.0,0.00024044,2]
[374959905,1753482640525,-793.0,0.00024083,2]
[374959907,1753482640535,-168.0,0.00024088,2]
[374959909,1753482640544,-460.0,0.00024109,2]
[374959911,1753482640554,-807.03,0.00024109,2]
[374959913,1753482640563,-460.0,0.00024109,2]
[374959915,1753482640573,-793.0,0.00024113,2]
[374959918,1753482640584,-793.0,0.00024179,2]
[374959920,1753482640593,-153.0,0.00024219,2]
[374959922,1753482640603,-153.0,0.00024219,2]
[374959924,1753482640613,-153.0,0.00024219,2]
[374959926,1753482640623,-153.0,0.00024219,2]
[374959928,1753482640633,-153.0,0.00024219,2]
[374959930,1753482640642,-153.0,0.00024219,2]
[374959932,1753482640651,-153.0,0.00024219,2]
[374959934,1753482640661,-153.0,0.00024219,2]
[374959935,1753482640670,-153.0,0.00024219,2]
[374959937,1753482640680,-153.0,0.00024219,2]
[374959939,1753482640691,-153.0,0.00024219,2]
[374959941,1753482640701,-153.0,0.00024219,2]
[374959943,1753482640711,-153.0,0.00024219,2]
[374959945,1753482640722,-153.0,0.00024219,2]
[374959947,1753482640732,-153.0,0.00024219,2]
[374959949,1753482640743,-153.0,0.00024219,2]
[374959951,1753482640753,-153.0,0.00024219,2]
[374959953,1753482640762,-153.0,0.00024219,2]
[374959955,1753482640773,-153.0,0.00024219,2]
[374959958,1753482640783,-153.0,0.00024219,2]
[374959960,1753482640793,-153.0,0.00024219,2]
[374959962,1753482640804,-153.0,0.00024219,2]
[374959964,1753482640813,-153.0,0.00024219,2]
[374959966,1753482640823,-153.0,0.00024219,2]
[374959968,1753482640832,-153.0,0.00024219,2]
[374959970,1753482640841,-153.0,0.00024219,2]
[374959971,1753482640851,-153.0,0.00024219,2]
[374959973,1753482640862,-153.0,0.00024219,2]
[374959976,1753482640872,-153.0,0.00024219,2]
[374959978,1753482640881,-153.0,0.00024219,2]
[374959980,1753482640890,-153.0,0.00024219,2]
[374959981,1753482640899,-153.0,0.00024219,2]
[374959984,1753482640909,-153.0,0.00024219,2]
[374959985,1753482640918,-153.0,0.00024219,2]
[374959987,1753482640928,-571.59,0.00024253,2]
[374959990,1753482640938,-460.0,0.00024253,2]
[374959991,1753482640947,-775.58,0.00024253,2]
[374959994,1753482640956,-460.0,0.00024253,2]
[374959996,1753482640966,-212.238664,0.00024366,7]
[374959997,1753482640975,-212.238664,0.00024366,7]
[374959999,1753482640984,-4112.0,0.00024366,2]
[374960001,1753482640993,-151.0,0.00024383,7]
[374960003,1753482641000,-888.0,0.00024383,4]
[374960005,1753482641008,-460.0,0.00024383,2]
[374960007,1753482641017,-807.03,0.00024383,2]
[374960009,1753482641024,-460.0,0.00024383,2]
[374960011,1753482641032,-231.28369723,0.00024384,2]
[374960013,1753482641041,-168.0,0.00024434,2]
[374960015,1753482641049,-151.0,0.000245,5]
[374960018,1753482641057,-168.0,0.00024517,2]
[374960020,1753482641065,-571.59,0.00024527,2]
[374960022,1753482641074,-460.0,0.00024527,2]
[374960033,1753482641166,-775.58,0.00024527,2]
[374960035,1753482641176,-460.0,0.00024527,2]
[374960037,1753482641185,-277.25845642,0.00024631,2]
[374960046,1753482641250,227.48497,0.00027,120]
[374960057,1753482641326,-460.0,0.00019178,2]
[374960058,1753482641336,-591.53504124,0.00019452,2]
[374960061,1753482641346,-648.0,0.00023024,2]
[374960063,1753482641356,-522.74154358,0.00024631,2]
[374960065,1753482641366,-500.0,0.00024657,2]
[374960067,1753482641375,-500.0,0.00024657,2]
[374960069,1753482641385,-500.0,0.00024657,2]
[374960071,1753482641395,-500.0,0.00024657,2]
[374960073,1753482641404,-500.0,0.00024657,2]
[374960075,1753482641414,-500.0,0.00024657,2]
[374960077,1753482641424,-500.0,0.00024657,2]
[374960079,1753482641434,-256.45,0.00024657,2]
[374960081,1753482641443,-807.03,0.00024657,2]
[374960083,1753482641453,-460.0,0.00024657,2]
[374960085,1753482641462,-151.0,0.000247,7]
[374960087,1753482641471,-151.0,0.00024788,7]
[374960089,1753482641481,-571.59,0.00024801,2]
[374960091,1753482641490,-134.65349163,0.00024801,2]
[374960313,1753482643898,-201.02389917,0.00021513,2]
[374960315,1753482643907,-325.34650837,0.00024801,2]
[374960317,1753482643917,-775.58,0.00024801,2]
[374960319,1753482643926,-460.0,0.00024801,2]
[374960321,1753482643935,-1264.39103806,0.00024831,2]
[374960323,1753482643945,-623.17,0.00024878,10]
[374960325,1753482643954,-264.118498,0.00024887,7]
[374960327,1753482643964,-151.0,0.00024887,7]
[374960329,1753482643973,-158.60887002,0.00024888,2]
[374960605,1753482646766,-250.0,0.00018871,2]
[374960607,1753482646776,-210.0,0.00024888,2]
[374960689,1753482647570,-0.81638374,0.00024888,2]
[374960691,1753482647582,-24431.1174,0.00024888,2]
[374964492,1753482703837,161.943838,0.00027397,120]
[374964514,1753482770870,499.03985186,0.00027397,120]
[374964515,1753482770893,0.96014814,0.00027397,120]
[374964516,1753482771108,500.0,0.00027397,120]
[374964517,1753482771744,500.0,0.00027397,120]
[374964518,1753482771963,443.03985186,0.00027397,120]
[374964519,1753482771986,56.96014814,0.00027397,120]
[374964520,1753482772235,143.03985186,0.00027397,120]
[374964521,1753482772260,356.96014814,0.00027397,120]
[374964522,1753482772468,500.0,0.00027397,120]
[374964523,1753482772719,500.0,0.00027397,120]
[374964524,1753482772963,438.82556427,0.00027397,120]
[374964525,1753482772985,61.17443573,0.00027397,120]
[374964526,1753482773552,500.0,0.00027397,120]
[374964527,1753482773808,217.20616784,0.00027397,120]
[374964528,1753482799205,153.0,0.00024,120]
[374964530,1753482800597,153.0,0.000251,120]
[374964531,1753482802010,153.0,0.000263,120]
[374964535,1753482832487,-9015.0,0.00018642,2]
[374964540,1753483081199,160.108082,0.00013699,2]
[374964542,1753483102393,-183.6915498,0.00018246,2]
[374964543,1753483102415,-21.3084502,0.00018642,2]
[374964555,1753483168486,-159.633041,0.00018392,2]
[374964556,1753483168507,-1.366959,0.00018642,2]
[374964609,1753483831975,-5.0483426,0.00018642,2]
[374964643,1753483832487,-353.99323984,0.000189,2]
[374964644,1753483832498,-312.16666667,0.00019157,2]
[374964645,1753483832507,-459.0,0.00019177,2]
[374964646,1753483832516,-300.0,0.00019177,2]
[374964647,1753483832526,-460.0,0.00019178,2]
[374964648,1753483832535,-460.0,0.00019178,2]
[374964649,1753483832544,-460.0,0.00019178,2]
[374964650,1753483832555,-460.0,0.00019178,2]
[374964651,1753483832564,-352.85766504,0.00019178,2]
[374964652,1753483832573,-204.82885784,0.00019178,2]
[374964653,1753483832583,-503.0238588,0.00019178,2]
[374964654,1753483832593,-460.0,0.00019178,2]
[374964655,1753483832604,-460.0,0.00019178,2]
[374964656,1753483832613,-454.75457992,0.00019178,2]
[374964657,1753483832623,-249.56249009,0.00019178,2]
[374964658,1753483832631,-683.4,0.00019178,2]
[374964659,1753483832643,-460.0,0.00019178,2]
[374964660,1753483832651,-605.13145932,0.00019178,2]
[374964661,1753483832660,-460.0,0.00019178,2]
[374964662,1753483832670,-460.0,0.00019178,2]
[374964663,1753483832679,-460.0,0.00019178,2]
[374964664,1753483832689,-460.0,0.00019178,2]
[374964665,1753483832699,-460.0,0.00019178,2]
[374964666,1753483832707,-460.0,0.00019178,2]
[374964667,1753483832717,-460.0,0.00019178,2]
[374964668,1753483832726,-460.0,0.00019178,2]
[374964669,1753483832735,-460.0,0.00019178,2]
[374964670,1753483832745,-460.0,0.00019178,2]
[374964671,1753483832754,-460.0,0.00019178,2]
[374964672,1753483832763,-460.0,0.00019178,2]
[374964673,1753483832772,-460.0,0.00019178,2]
[374964674,1753483832782,-164.46597009,0.00019178,2]
[374964675,1753483832791,-171.790108,0.00019178,2]
[374964676,1753483832801,-18.46948503,0.00019178,2]
[374964677,1753483832813,-537.35,0.00019178,2]
[374964678,1753483837088,-110.18051497,0.00019178,2]
[374964679,1753483837098,-460.0,0.00019451,2]
[374964680,1753483837108,-460.0,0.00019451,2]
[374964681,1753483837118,-460.0,0.00019451,2]
[374964682,1753483837129,-683.4,0.00019452,2]
[374964683,1753483837140,-123.51727524,0.00019452,2]
[374964718,1753483837902,-336.48272476,0.00019452,2]
[374964720,1753483837912,-189.88809154,0.00019452,2]
[374964722,1753483837923,-270.11190846,0.00019452,2]
[374964724,1753483837933,-104.37413014,0.00019452,2]
[374964726,1753483837945,-355.62586986,0.00019452,2]
[374964728,1753483837954,-183.18968394,0.00019452,2]
[374964730,1753483837970,-276.81031606,0.00019452,2]
[374964732,1753483837980,-460.0,0.00019452,2]
[374964734,1753483837989,-460.0,0.00019452,2]
[374964736,1753483837999,-512.15623711,0.00019452,2]
[374964738,1753483838008,-460.0,0.00019452,2]
[374964740,1753483838018,-460.0,0.00019725,2]
[374964742,1753483838027,-460.0,0.00019725,2]
[374964744,1753483838037,-460.0,0.00019725,2]
[374964746,1753483838046,-460.0,0.00019725,2]
[374964748,1753483838055,-460.0,0.00019725,2]
[374964750,1753483838065,-1472.23,0.00019725,2]
[374964752,1753483838074,-460.0,0.00019725,2]
[374964754,1753483838083,-683.4,0.00019726,2]
[374964756,1753483838092,-460.0,0.00019726,2]
[374964758,1753483838102,-460.0,0.00019726,2]
[374964760,1753483838111,-460.0,0.00019726,2]
[374964762,1753483838121,-460.0,0.00019726,2]
[374964764,1753483838131,-460.0,0.00019726,2]
[374964766,1753483838140,-460.0,0.00019726,2]
[374964768,1753483838149,-460.0,0.00019726,2]
[374964770,1753483838159,-460.0,0.00019999,2]
[374964772,1753483838169,-460.0,0.00019999,2]
[374964774,1753483838179,-460.0,0.00019999,2]
[374964776,1753483838188,-460.0,0.00019999,2]
[374964778,1753483838198,-524.48,0.00019999,2]
[374964780,1753483838208,-1472.23,0.00019999,2]
[374964782,1753483838218,-683.4,0.0002,2]
[374964783,1753483838228,-268.89084598,0.0002,2]
[374964784,1753483838237,-460.0,0.0002,2]
[374964785,1753483838246,-460.0,0.0002,2]
[374964786,1753483838255,-460.0,0.0002,2]
[374964787,1753483838265,-460.0,0.0002,2]
[374964788,1753483838274,-460.0,0.0002,2]
[374964789,1753483838285,-460.0,0.0002,2]
[374964790,1753483838294,-202.33726611,0.00020126,2]
[374964791,1753483838308,-683.4,0.00020273,2]
[374964792,1753483838318,-460.0,0.00020273,2]
[374964793,1753483838327,-460.0,0.00020273,2]
[374964794,1753483838336,-460.0,0.00020273,2]
[374964795,1753483838346,-460.0,0.00020273,2]
[374964796,1753483838356,-460.0,0.00020273,2]
[374964797,1753483838365,-460.0,0.00020273,2]
[374964798,1753483838374,-460.0,0.00020273,2]
[374964799,1753483838383,-460.0,0.00020273,2]
[374964800,1753483838392,-1472.23,0.00020273,2]
[374964801,1753483838401,-460.0,0.00020273,2]
[374964802,1753483838411,-460.0,0.00020273,2]
[374964803,1753483838420,-194.45,0.00020309,2]
[374964804,1753483838430,-683.4,0.00020547,2]
[374964805,1753483838439,-460.0,0.00020547,2]
[374964806,1753483838448,-460.0,0.00020547,2]
[374964807,1753483838457,-460.0,0.00020547,2]
[374964808,1753483838467,-460.0,0.00020547,2]
[374964809,1753483838476,-460.0,0.00020547,2]
[374964810,1753483838485,-460.0,0.00020547,2]
[374964811,1753483838494,-344.22844169,0.00020547,2]
[374964812,1753483838504,-460.0,0.00020547,2]
[374964813,1753483838514,-1472.23,0.00020547,2]
[374964814,1753483838523,-460.0,0.00020547,2]
[374964815,1753483838532,-336.22815342,0.00020547,2]
[374964816,1753483838542,-160.108082,0.00020548,2]
[374964817,1753483838551,-244.0314186,0.0002082,2]
[374964818,1753483838560,-500.0,0.0002082,2]
[374964819,1753483838570,-487.61384251,0.0002082,2]
[374964820,1753483838579,-160.34126685,0.0002082,2]
[374964821,1753483838588,-500.0,0.0002082,2]
[374964822,1753483838597,-500.0,0.0002082,2]
[374964823,1753483838607,-209.37401083,0.0002082,2]
[374964824,1753483838616,-405.6829226,0.0002082,2]
[374964825,1753483838626,-500.0,0.0002082,2]
[374964826,1753483838636,-500.0,0.0002082,2]
[374964827,1753483838645,-216.79334488,0.0002082,2]
[374964828,1753483838655,-683.4,0.00020821,2]
[374964829,1753483838664,-460.0,0.00020821,2]
[374964830,1753483838673,-125.0003517,0.00020821,2]
[374964831,1753483838686,-334.9996483,0.00020821,2]
[374964832,1753483838695,-460.0,0.00020821,2]
[374964833,1753483838705,-460.0,0.00020821,2]
[374964834,1753483838714,-460.0,0.00020821,2]
[374964835,1753483838724,-460.0,0.00020821,2]
[374964836,1753483838734,-460.0,0.00020821,2]
[374964837,1753483838743,-1472.23,0.00020821,2]
[374964838,1753483838753,-460.0,0.00020821,2]
[374964839,1753483838763,-12627.2413641,0.0002103,2]
[374964840,1753483838772,-160.0,0.0002103,2]
[374964841,1753483838787,-500.0,0.00021064,2]
[374964842,1753483838796,-683.4,0.00021095,2]
[374964843,1753483838806,-460.0,0.00021095,2]
[374964844,1753483838816,-460.0,0.00021095,2]
[374964845,1753483838825,-460.0,0.00021095,2]
[374964846,1753483838835,-460.0,0.00021095,2]
[374964847,1753483838847,-460.0,0.00021095,2]
[374964848,1753483838862,-460.0,0.00021095,2]
[374964849,1753483838872,-460.0,0.00021095,2]
[374964850,1753483838881,-1472.23,0.00021095,2]
[374964851,1753483838890,-460.0,0.00021095,2]
[374964852,1753483838900,-338.407,0.00021216,2]
[374964853,1753483838910,-793.51,0.00021359,10]
[374964854,1753483838919,-661.25,0.00021359,10]
[374964855,1753483838928,-551.05,0.00021359,10]
[374964856,1753483838937,-683.4,0.00021369,2]
[374964858,1753483838946,-460.0,0.00021369,2]
[374964860,1753483838957,-460.0,0.00021369,2]
[374964862,1753483838969,-460.0,0.00021369,2]
[374964864,1753483838979,-460.0,0.00021369,2]
[374964866,1753483838988,-460.0,0.00021369,2]
[374964868,1753483838997,-460.0,0.00021369,2]
[374964870,1753483839009,-460.0,0.00021369,2]
[374964872,1753483839018,-1472.23,0.00021369,2]
[374964874,1753483839028,-210.69494131,0.00021369,2]
[374964876,1753483839038,-683.4,0.00021643,2]
[374964878,1753483839047,-460.0,0.00021643,2]
[374964880,1753483839056,-460.0,0.00021643,2]
[374964882,1753483839066,-460.0,0.00021643,2]
[374964884,1753483839075,-460.0,0.00021643,2]
[374964886,1753483839084,-460.0,0.00021643,2]
[374964888,1753483839093,-460.0,0.00021643,2]
[374964890,1753483839103,-460.0,0.00021643,2]
[374964892,1753483839113,-1472.23,0.00021643,2]
[374964894,1753483839124,-215.0738,0.00021646,2]
[374964896,1753483839135,-233.13213801,0.00021917,2]
[374964898,1753483839144,-683.4,0.00021917,2]
[374964900,1753483839154,-460.0,0.00021917,2]
[374964902,1753483839164,-460.0,0.00021917,2]
[374964904,1753483839173,-460.0,0.00021917,2]
[374964906,1753483839183,-460.0,0.00021917,2]
[374964908,1753483839193,-460.0,0.00021917,2]
[374964910,1753483839203,-490.08,0.00021917,2]
[374964912,1753483839212,-460.0,0.00021917,2]
[374964914,1753483839223,-1472.23,0.00021917,2]
[374964916,1753483839232,-352.56,0.00022,7]
[374964918,1753483839241,-106.90666891,0.00022156,2]
[374964920,1753483839254,-281.99333109,0.00022156,2]
[374964922,1753483839264,-683.4,0.00022191,2]
[374964924,1753483839273,-460.0,0.00022191,2]
[374964926,1753483839283,-24.01768015,0.00022191,2]
[374964928,1753483839294,-214.62714163,0.00022191,2]
[374964930,1753483839303,-460.0,0.00022191,2]
[374964932,1753483839312,-366.94286087,0.00022191,2]
[374964934,1753483839323,-93.05713913,0.00022191,2]
[374964936,1753483839333,-497.44,0.00022191,2]
[374964938,1753483839342,-460.0,0.00022191,2]
[374964939,1753483839351,-458.21041925,0.00022191,2]
[374964941,1753483839363,-1014.01958075,0.00022191,2]
[374964943,1753483839373,-683.4,0.00022465,2]
[374964945,1753483839382,-1390.36,0.00022465,2]
[374964947,1753483839392,-460.0,0.00022465,2]
[374964949,1753483839401,-460.0,0.00022465,2]
[374964951,1753483839411,-460.0,0.00022465,2]
[374964953,1753483839422,-460.0,0.00022465,2]
[374964955,1753483839433,-1472.23,0.00022465,2]
[374964956,1753483839442,-683.4,0.00022739,2]
[374964957,1753483839451,-460.0,0.00022739,2]
[374964959,1753483839462,-460.0,0.00022739,2]
[374964961,1753483839471,-460.0,0.00022739,2]
[374964963,1753483839480,-460.0,0.00022739,2]
[374964965,1753483839490,-1472.23,0.00022739,2]
[374964966,1753483839499,-160.0,0.00023,2]